fUST/lending_fUST_20250904
["ID","MTS","AMOUNT","RATE_DAILY","PERIOD"]
[383499221,1756960243144,-231.21535667,0.00013988,2]
[383499222,1756960243153,-500.0,0.00013988,2]
[383499223,1756960243162,-500.0,0.00013988,2]
[383499224,1756960243172,-500.0,0.00013988,2]
[383499225,1756960243181,-500.0,0.00013988,2]
[383499226,1756960243191,-526.86583969,0.00013988,2]
[383499227,1756960243206,-500.0,0.00013988,2]
[383499228,1756960243215,-500.0,0.00013988,2]
[383499229,1756960243225,-500.0,0.00013988,2]
[383499230,1756960243234,-500.0,0.00013988,2]
[383499231,1756960243243,-500.0,0.00013988,2]
[383499232,1756960243253,-500.0,0.00013988,2]
[383499233,1756960243263,-500.0,0.00013988,2]
[383499234,1756960243273,-500.0,0.00013988,2]
[383499235,1756960243282,-500.0,0.00013988,2]
[383499236,1756960243292,-599.66906981,0.00013988,2]
[383499237,1756960243302,-500.0,0.00013988,2]
[383499238,1756960243311,-500.0,0.00013988,2]
[383499239,1756960243321,-500.0,0.00013988,2]
[383499240,1756960243331,-500.0,0.00013988,2]
[383499241,1756960243340,-500.0,0.00013988,2]
[383499242,1756960243350,-500.0,0.00013988,2]
[383499243,1756960243360,-500.0,0.00013988,2]
[383499244,1756960243370,-500.0,0.00013988,2]
[383499245,1756960243380,-500.0,0.00013988,2]
[383499246,1756960243390,-500.0,0.00013988,2]
[383499247,1756960243399,-336.5046201,0.00013988,2]
[383499248,1756960243409,-500.0,0.00013989,2]
[383499249,1756960243419,-306.18430436,0.00013989,2]
[383499250,1756960243429,-500.0,0.00013989,2]
[383499251,1756960243438,-500.0,0.00013989,2]
[383499252,1756960243450,-500.0,0.00013989,2]
[383499253,1756960243459,-500.0,0.00013989,2]
[383499254,1756960243470,-500.0,0.00013989,2]
[383499255,1756960243479,-500.0,0.00013989,2]
[383499256,1756960243489,-500.0,0.00013989,2]
[383499257,1756960243499,-500.0,0.00013989,2]
[383499258,1756960243509,-500.0,0.00013989,2]
[383499259,1756960243519,-500.0,0.00013989,2]
[383499260,1756960243528,-500.0,0.00013989,2]
[383499261,1756960243538,-528.34607793,0.00013989,2]
[383499262,1756960243548,-500.0,0.00013989,2]
[383499263,1756960243557,-600.0,0.00013989,2]
[383499264,1756960243567,-500.0,0.00013989,2]
[383499265,1756960243576,-73032.88873482,0.0001399,2]
[383499266,1756960260028,1050.0,0.00029748,60]
[383499267,1756960326470,1060.0,0.00029748,60]
[383499271,1756960354369,1000.0,0.00029748,60]
[383499278,1756960385520,999.0,0.00029748,60]
[383499279,1756960475293,1336.2127064,0.0001525,6]
[383499280,1756960614358,470.56518241,0.00013502,2]
[383499281,1756960677545,1458.0,0.00027397,120]
[383499282,1756960894122,486.12000941,0.0001525,6]
[383499283,1756961315447,672.188855,0.00013699,2]
[383499357,1756961438355,-173.0,0.00013799,2]
[383499358,1756961438365,-987.71541667,0.0001389,2]
[383499359,1756961438374,-1200.0,0.00013965,2]
[383499360,1756961438384,-100.01360565,0.00013966,2]
[383499480,1756961441099,-1099.98639435,0.00013966,2]
[383499482,1756961441108,-300.0,0.00013966,2]
[383499484,1756961441117,-300.0,0.00013966,2]
[383499486,1756961441127,-300.0,0.00013966,2]
[383499488,1756961441136,-300.0,0.00013966,2]
[383499490,1756961441145,-300.0,0.00013966,2]
[383499492,1756961441155,-488.14197933,0.00013967,2]
[383499494,1756961441165,-627.13916841,0.00013967,2]
[383499496,1756961441174,-967.82,0.00013967,2]
[383499498,1756961441184,-698.07,0.00013967,2]
[383499500,1756961441193,-481.12804614,0.00013967,2]
[383499502,1756961441202,-334.39223782,0.00013967,2]
[383499504,1756961441212,-480.0,0.00013967,2]
[383499506,1756961441221,-480.0,0.00013967,2]
[383499508,1756961441231,-651.81,0.00013967,2]
[383499510,1756961441240,-364.88127723,0.00013967,2]
[383499512,1756961441249,-485.43107364,0.00013967,2]
[383499514,1756961441259,-523.65778618,0.00013967,2]
[383499516,1756961441269,-480.0,0.00013967,2]
[383499518,1756961441279,-481.82708454,0.00013967,2]
[383499520,1756961441289,-480.0,0.00013967,2]
[383499522,1756961441298,-480.0,0.00013967,2]
[383499524,1756961441308,-66.20993362,0.00013967,2]
[383499526,1756961441320,-428.75146329,0.00013967,2]
[383499713,1756961443127,-240.42860309,0.00013967,2]
[383499714,1756961443137,-214.15459722,0.00013967,2]
[383499715,1756961443146,-165.09019327,0.00013967,2]
[383499922,1756961446395,-314.90980673,0.00013967,2]
[383499923,1756961446405,-401.62950609,0.00013967,2]
[383499926,1756961656075,326.848619,0.00013699,2]
[383499928,1756961896899,151.0,0.000136,2]
[383499929,1756961897172,151.0,0.000131,2]
[383499930,1756961897502,151.0,0.000126,2]
[383499931,1756961897786,151.0,0.00012,2]
[383499932,1756961898105,151.0,0.000115,2]
[383499933,1756961898661,151.0,0.00011,2]
[383499934,1756962037041,1683.8921402,0.00013699,2]
[383499935,1756962065214,919.8023103,0.00013699,2]
[383499937,1756962271327,250.0,0.00013634,2]
[383499938,1756962275122,707.779533,0.00013699,2]
[383499948,1756962426841,1447.08199897,0.00013764,2]
[383499949,1756962472062,3086.41654353,0.00013765,2]
[383499950,1756962472086,2035.62896462,0.00013765,2]
[383499951,1756962530573,7964.38103538,0.00013699,2]
[383499952,1756962530594,8333.11896662,0.00013699,2]
[383499953,1756962539300,199.31,0.00012329,2]
[383499954,1756962549735,166.09,0.00012329,2]
[383499955,1756962557885,1687.40180842,0.00013758,2]
[383499956,1756962560181,830.5,0.00012329,2]
[383499957,1756962560210,318.2442334,0.00012749,2]
[383499959,1756962621716,163.42431,0.00013699,2]
[383499976,1756962632305,-213.0,0.00013799,2]
[383499978,1756962632315,-300.0,0.00013856,2]
[383499980,1756962632325,-1200.0,0.00013856,2]
[383499982,1756962632335,-35985.40963448,0.00013856,2]
[383499986,1756962632362,-35860.67139107,0.00013856,2]
[383499989,1756962632374,-14513.01042464,0.00013856,2]
[383499991,1756962632384,-2347.87260389,0.00013857,2]
[383499993,1756962632393,-482.8014929,0.00013857,2]
[383499995,1756962632403,-481.91251085,0.00013857,2]
[383499997,1756962632412,-482.32251588,0.00013857,2]
[383499999,1756962632422,-482.03474806,0.00013857,2]
[383500002,1756962632432,-480.0,0.00013857,2]
[383500005,1756962632441,-480.0,0.00013857,2]
[383500008,1756962632450,-569.95,0.00013857,2]
[383500010,1756962632460,-480.0,0.00013857,2]
[383500012,1756962632470,-484.33218848,0.00013857,2]
[383500015,1756962632479,-898.15,0.00013857,2]
[383500017,1756962632489,-298.98209547,0.00013857,2]
[383500019,1756962632498,-1473.04,0.00013857,2]
[383500021,1756962632508,-486.01910114,0.00013857,2]
[383500023,1756962632517,-456.65354229,0.00013857,2]
[383500025,1756962632527,-480.0,0.00013857,2]
[383500027,1756962632537,-485.26,0.00013857,2]
[383500029,1756962632547,-480.0,0.00013857,2]
[383500031,1756962632556,-480.0,0.00013857,2]
[383500033,1756962632565,-1000.0,0.00013858,2]
[383500035,1756962632575,-1000.0,0.00013858,2]
[383500037,1756962632584,-889.11688855,0.00013858,2]
[383500038,1756962632594,-187.78006525,0.00013858,2]
[383500039,1756962632603,-151.0,0.00013858,2]
[383500040,1756962632613,-151.0,0.00013858,2]
[383500041,1756962632623,-151.0,0.00013858,2]
[383500042,1756962632632,-151.0,0.00013858,2]
[383500043,1756962632642,-250.0,0.00013858,2]
[383500044,1756962632651,-151.0,0.00013858,2]
[383500045,1756962632660,-250.0,0.00013858,2]
[383500046,1756962632670,-151.0,0.00013858,2]
[383500047,1756962632679,-271.44145063,0.00013858,2]
[383500048,1756962632689,-151.0,0.00013858,2]
[383500049,1756962632698,-151.0,0.00013858,2]
[383500050,1756962632708,-250.0,0.00013858,2]
[383500051,1756962632717,-151.0,0.00013858,2]
[383500052,1756962632727,-151.0,0.00013858,2]
[383500053,1756962632736,-151.0,0.00013858,2]
[383500054,1756962632745,-250.0,0.00013858,2]
[383500055,1756962632755,-151.0,0.00013858,2]
[383500056,1756962632765,-250.0,0.00013858,2]
[383500057,1756962632774,-154.57353171,0.00013858,2]
[383500058,1756962632783,-250.0,0.00013858,2]
[383500059,1756962632793,-151.0,0.00013858,2]
[383500060,1756962632802,-250.0,0.00013858,2]
[383500061,1756962632812,-151.0,0.00013858,2]
[383500062,1756962632821,-250.0,0.00013858,2]
[383500063,1756962632831,-151.0,0.00013858,2]
[383500064,1756962632840,-151.0,0.00013858,2]
[383500065,1756962632850,-250.0,0.00013858,2]
[383500066,1756962632859,-291.03249184,0.00013858,2]
[383500067,1756962632869,-151.0,0.00013858,2]
[383500068,1756962632879,-250.0,0.00013858,2]
[383500069,1756962632888,-151.0,0.00013858,2]
[383500070,1756962632898,-187.7618216,0.00013858,2]
[383500071,1756962632907,-250.0,0.00013858,2]
[383500072,1756962632916,-151.0,0.00013858,2]
[383500073,1756962632926,-250.0,0.00013858,2]
[383500074,1756962632935,-151.0,0.00013858,2]
[383500075,1756962632944,-250.0,0.00013858,2]
[383500076,1756962632953,-151.0,0.00013858,2]
[383500077,1756962632963,-250.0,0.00013858,2]
[383500078,1756962632973,-151.0,0.00013858,2]
[383500079,1756962632982,-250.0,0.00013858,2]
[383500080,1756962632991,-151.0,0.00013858,2]
[383500081,1756962633001,-250.0,0.00013858,2]
[383500082,1756962633011,-152.41700061,0.00013858,2]
[383500083,1756962633020,-151.0,0.00013858,2]
[383500084,1756962633030,-202.25777626,0.00013858,2]
[383500085,1756962633039,-500.0,0.00013858,2]
[383500086,1756962633049,-50000.0,0.00013858,2]
[383500087,1756962633058,-1195.24397281,0.00013863,2]
[383500088,1756962633068,-151.0,0.00013863,2]
[383500089,1756962633078,-151.0,0.00013863,2]
[383500090,1756962633088,-151.0,0.00013863,2]
[383500091,1756962633097,-151.0,0.00013863,2]
[383500092,1756962633107,-151.0,0.00013863,2]
[383500093,1756962633117,-151.0,0.00013863,2]
[383500094,1756962633127,-151.0,0.00013863,2]
[383500095,1756962633141,-151.0,0.00013863,2]
[383500096,1756962633151,-151.0,0.00013863,2]
[383500097,1756962633160,-151.0,0.00013863,2]
[383500098,1756962633170,-151.0,0.00013863,2]
[383500099,1756962633180,-151.0,0.00013863,2]
[383500100,1756962633190,-151.840051,0.00013863,2]
[383500101,1756962633199,-151.0,0.00013863,2]
[383500102,1756962633211,-151.0,0.00013863,2]
[383500103,1756962633221,-151.0,0.00013863,2]
[383500104,1756962633230,-151.0,0.00013863,2]
[383500105,1756962633240,-151.0,0.00013863,2]
[383500106,1756962633250,-151.0,0.00013863,2]
[383500107,1756962633259,-480.0,0.00013863,2]
[383500108,1756962633269,-151.0,0.00013863,2]
[383500109,1756962633279,-151.0,0.00013863,2]
[383500110,1756962633289,-154.279632,0.00013863,2]
[383500111,1756962633298,-151.0,0.00013863,2]
[383500112,1756962633308,-151.0,0.00013863,2]
[383500113,1756962633317,-133.19335462,0.00013863,2]
[383500114,1756962633330,-17.80664538,0.00013863,2]
[383500115,1756962633339,-151.0,0.00013863,2]
[383500116,1756962633469,-151.0,0.00013863,2]
[383500117,1756962633480,-151.0,0.00013863,2]
[383500118,1756962633490,-151.0,0.00013863,2]
[383500119,1756962633500,-151.0,0.00013863,2]
[383500120,1756962633509,-151.0,0.00013863,2]
[383500121,1756962633519,-152.464181,0.00013863,2]
[383500122,1756962633529,-84.68978975,0.00013863,2]
[383500123,1756962633541,-395.31021025,0.00013863,2]
[383500124,1756962633551,-728.82,0.00013863,2]
[383500125,1756962633561,-359.233415,0.00013863,2]
[383500126,1756962633570,-359.233415,0.00013863,2]
[383500127,1756962633579,-359.233415,0.00013863,2]
[383500128,1756962633589,-359.233415,0.00013863,2]
[383500129,1756962633598,-480.0,0.00013863,2]
[383500130,1756962633608,-359.233415,0.00013863,2]
[383500131,1756962633617,-359.233415,0.00013863,2]
[383500132,1756962633627,-359.233415,0.00013863,2]
[383500133,1756962633636,-359.233415,0.00013863,2]
[383500134,1756962633647,-359.233415,0.00013863,2]
[383500135,1756962633656,-359.233415,0.00013863,2]
[383500136,1756962633666,-359.233415,0.00013863,2]
[383500137,1756962633675,-359.233415,0.00013863,2]
[383500138,1756962633685,-359.233415,0.00013863,2]
[383500139,1756962633694,-359.233415,0.00013863,2]
[383500140,1756962633704,-359.233415,0.00013863,2]
[383500141,1756962633713,-359.233415,0.00013863,2]
[383500142,1756962633723,-480.0,0.00013863,2]
[383500143,1756962633733,-151.0,0.00013863,2]
[383500144,1756962633743,-314.25,0.00013863,2]
[383500145,1756962633752,-151.0,0.00013863,2]
[383500146,1756962633762,-185.21269396,0.00013863,2]
[383500149,1756962638376,-500.0,0.00013855,2]
[383500150,1756962638387,-500.0,0.00013855,2]
[383500151,1756962638397,-342.47067578,0.00013855,2]
[383500168,1756962643457,-157.52932422,0.00013855,2]
[383500170,1756962643468,-199.03067578,0.00013855,2]
[383500171,1756962643479,-300.96932422,0.00013855,2]
[383500172,1756962643488,-500.0,0.00013855,2]
[383500173,1756962643498,-500.0,0.00013855,2]
[383500174,1756962643507,-500.0,0.00013855,2]
[383500175,1756962643517,-464.93941047,0.00013855,2]
[383500176,1756962643527,-500.0,0.00013855,2]
[383500177,1756962643536,-500.0,0.00013855,2]
[383500178,1756962643545,-500.0,0.00013855,2]
[383500179,1756962643555,-500.0,0.00013855,2]
[383500180,1756962643565,-500.0,0.00013855,2]
[383500181,1756962643574,-500.0,0.00013855,2]
[383500182,1756962643583,-500.0,0.00013855,2]
[383500183,1756962643593,-500.0,0.00013855,2]
[383500184,1756962643603,-500.0,0.00013855,2]
[383500185,1756962643612,-465.81177079,0.00013855,2]
[383500226,1756962646711,-34.18822921,0.00013855,2]
[383500228,1756962646721,-500.0,0.00013855,2]
[383500230,1756962646731,-500.0,0.00013855,2]
[383500232,1756962646741,-500.0,0.00013855,2]
[383500235,1756962646751,-500.0,0.00013855,2]
[383500237,1756962646760,-312.09953816,0.00013855,2]
[383500238,1756962646769,-500.0,0.00013855,2]
[383500240,1756962646779,-500.0,0.00013855,2]
[383500243,1756962646788,-500.0,0.00013855,2]
[383500245,1756962646798,-354.79386906,0.00013855,2]
[383500247,1756962646809,-145.20613094,0.00013855,2]
[383500249,1756962646819,-500.0,0.00013855,2]
[383500251,1756962646828,-500.0,0.00013855,2]
[383500253,1756962646837,-500.0,0.00013855,2]
[383500255,1756962646846,-307.2088783,0.00013855,2]
[383500257,1756962646855,-500.0,0.00013855,2]
[383500259,1756962646865,-500.0,0.00013855,2]
[383500261,1756962646874,-414.77442849,0.00013855,2]
[383500263,1756962646883,-500.0,0.00013855,2]
[383500265,1756962646893,-500.0,0.00013855,2]
[383500267,1756962646903,-500.0,0.00013855,2]
[383500269,1756962646913,-500.0,0.00013855,2]
[383500271,1756962646922,-500.0,0.00013855,2]
[383500273,1756962646931,-500.0,0.00013855,2]
[383500275,1756962646942,-500.0,0.00013855,2]
[383500277,1756962646951,-500.0,0.00013855,2]
[383500279,1756962646961,-500.0,0.00013855,2]
[383500281,1756962646970,-500.0,0.00013855,2]
[383500283,1756962646979,-500.0,0.00013855,2]
[383500285,1756962646988,-500.0,0.00013855,2]
[383500287,1756962646998,-500.0,0.00013855,2]
[383500289,1756962647007,-500.0,0.00013855,2]
[383500291,1756962647016,-500.0,0.00013855,2]
[383500293,1756962647026,-500.0,0.00013855,2]
[383500295,1756962647035,-500.0,0.00013855,2]
[383500297,1756962647044,-500.0,0.00013855,2]
[383500299,1756962647054,-377.1865564,0.00013855,2]
[383500301,1756962647063,-500.0,0.00013855,2]
[383500303,1756962647072,-500.0,0.00013855,2]
[383500305,1756962647082,-500.0,0.00013855,2]
[383500307,1756962647093,-500.0,0.00013855,2]
[383500309,1756962647102,-590.54822638,0.00013855,2]
[383500311,1756962647112,-608.79810512,0.00013855,2]
[383500313,1756962647123,-52702.48391647,0.00013856,2]
[383500315,1756962647135,-500.0,0.00013857,2]
[383500317,1756962647144,-500.0,0.00013857,2]
[383500319,1756962647153,-500.0,0.00013857,2]
[383500321,1756962647163,-176.04480372,0.00013857,2]
[383500323,1756962647172,-500.0,0.00013857,2]
[383500325,1756962647182,-500.0,0.00013857,2]
[383500327,1756962647191,-437.64313555,0.00013857,2]
[383500328,1756962647200,-500.0,0.00013857,2]
[383500330,1756962647210,-500.0,0.00013857,2]
[383500332,1756962647221,-500.0,0.00013857,2]
[383500335,1756962647230,-500.0,0.00013857,2]
[383500337,1756962647240,-500.0,0.00013857,2]
[383500339,1756962647249,-500.0,0.00013857,2]
[383500340,1756962647258,-500.0,0.00013857,2]
[383500342,1756962647269,-500.0,0.00013857,2]
[383500344,1756962647279,-500.0,0.00013857,2]
[383500346,1756962647288,-500.0,0.00013857,2]
[383500348,1756962647298,-480.0,0.00013857,2]
[383500351,1756962647307,-480.0,0.00013857,2]
[383500353,1756962647318,-698.45,0.00013857,2]
[383500355,1756962647328,-50.26201904,0.00013863,2]
[383500357,1756962647337,-954.45,0.00013863,2]
[383500359,1756962647347,-536.888623,0.00013863,2]
[383500361,1756962647356,-536.888623,0.00013863,2]
[383500363,1756962647366,-536.888623,0.00013863,2]
[383500376,1756962647481,-536.888623,0.00013863,2]
[383500378,1756962647494,-536.888623,0.00013863,2]
[383500380,1756962647504,-536.888623,0.00013863,2]
[383500382,1756962647514,-536.888623,0.00013863,2]
[383500384,1756962647524,-536.888623,0.00013863,2]
[383500386,1756962647534,-536.888623,0.00013863,2]
[383500388,1756962647544,-536.888623,0.00013863,2]
[383500390,1756962647553,-536.888623,0.00013863,2]
[383500392,1756962647563,-536.888623,0.00013863,2]
[383500394,1756962647573,-151.0,0.00013863,2]
[383500397,1756962647582,-536.888623,0.00013863,2]
[383500399,1756962647592,-151.0,0.00013863,2]
[383500400,1756962647602,-536.888623,0.00013863,2]
[383500403,1756962647612,-151.0,0.00013863,2]
[383500405,1756962647621,-536.888623,0.00013863,2]
[383500407,1756962647630,-167.869235,0.00013863,2]
[383500408,1756962647640,-536.888623,0.00013863,2]
[383500410,1756962647649,-167.824252,0.00013863,2]
[383500412,1756962647659,-151.0,0.00013863,2]
[383500414,1756962647669,-151.0,0.00013863,2]
[383500417,1756962647678,-1300.78,0.00013863,2]
[383500418,1756962647689,-177.826147,0.00013863,2]
[383500420,1756962647699,-151.0,0.00013863,2]
[383500422,1756962647708,-151.0,0.00013863,2]
[383500424,1756962647717,-151.0,0.00013863,2]
[383500426,1756962647727,-151.0,0.00013863,2]
[383500428,1756962647738,-151.0,0.00013863,2]
[383500430,1756962647748,-158.36841,0.00013863,2]
[383500432,1756962647758,-480.0,0.00013863,2]
[383500434,1756962647767,-151.0,0.00013863,2]
[383500436,1756962647777,-160.797961,0.00013863,2]
[383500438,1756962647786,-480.0,0.00013863,2]
[383500440,1756962647795,-666.01,0.00013863,2]
[383500442,1756962647805,-151.0,0.00013863,2]
[383500444,1756962647815,-151.0,0.00013863,2]
[383500446,1756962647824,-151.0,0.00013863,2]
[383500448,1756962647834,-151.0,0.00013863,2]
[383500450,1756962647843,-151.0,0.00013863,2]
[383500452,1756962647853,-151.0,0.00013863,2]
[383500454,1756962647862,-151.0,0.00013863,2]
[383500456,1756962647871,-151.0,0.00013863,2]
[383500458,1756962647881,-151.0,0.00013863,2]
[383500460,1756962647891,-151.0,0.00013863,2]
[383500462,1756962647900,-154.362186,0.00013863,2]
[383500464,1756962647909,-151.0,0.00013863,2]
[383500467,1756962647919,-151.0,0.00013863,2]
[383500468,1756962647929,-151.0,0.00013863,2]
[383500470,1756962647938,-151.0,0.00013863,2]
[383500472,1756962647947,-151.0,0.00013863,2]
[383500474,1756962647957,-151.0,0.00013863,2]
[383500476,1756962647966,-151.0,0.00013863,2]
[383500477,1756962647975,-256.964841,0.00013863,2]
[383500478,1756962647984,-480.0,0.00013863,2]
[383500479,1756962647993,-1338.8,0.00013863,2]
[383500480,1756962648002,-151.0,0.00013863,2]
[383500481,1756962648011,-151.0,0.00013863,2]
[383500482,1756962648021,-157.091232,0.00013863,2]
[383500483,1756962648030,-151.0,0.00013863,2]
[383500484,1756962648039,-151.0,0.00013863,2]
[383500485,1756962648048,-151.0,0.00013863,2]
[383500486,1756962648057,-242.601776,0.00013863,2]
[383500487,1756962648066,-151.0,0.00013863,2]
[383500488,1756962648075,-151.0,0.00013863,2]
[383500489,1756962648085,-151.0,0.00013863,2]
[383500490,1756962648094,-151.0,0.00013863,2]
[383500491,1756962648104,-151.0,0.00013863,2]
[383500492,1756962648113,-151.0,0.00013863,2]
[383500493,1756962648122,-151.0,0.00013863,2]
[383500494,1756962648132,-218.777638,0.00013863,2]
[383500495,1756962648145,-152.036722,0.00013863,2]
[383500496,1756962648154,-168.151786,0.00013863,2]
[383500497,1756962648164,-480.0,0.00013863,2]
[383500498,1756962648173,-168.151786,0.00013863,2]
[383500499,1756962648183,-168.151786,0.00013863,2]
[383500500,1756962648191,-168.151786,0.00013863,2]
[383500501,1756962648201,-168.151786,0.00013863,2]
[383500502,1756962648210,-168.151786,0.00013863,2]
[383500503,1756962648221,-168.151786,0.00013863,2]
[383500504,1756962648230,-168.151786,0.00013863,2]
[383500505,1756962648239,-168.151786,0.00013863,2]
[383500506,1756962648249,-168.151786,0.00013863,2]
[383500507,1756962648259,-168.151786,0.00013863,2]
[383500509,1756962648268,-168.151786,0.00013863,2]
[383500511,1756962648278,-168.151786,0.00013863,2]
[383500513,1756962648288,-168.151786,0.00013863,2]
[383500515,1756962648298,-168.151786,0.00013863,2]
[383500517,1756962648308,-168.151786,0.00013863,2]
[383500519,1756962648318,-168.151786,0.00013863,2]
[383500521,1756962648327,-168.151786,0.00013863,2]
[383500523,1756962648337,-536.94718417,0.00013863,2]
[383500525,1756962648347,-168.151786,0.00013863,2]
[383500527,1756962648356,-168.151784,0.00013863,2]
[383500529,1756962648365,-480.0,0.00013863,2]
[383500531,1756962648374,-151.610058,0.00013863,2]
[383500533,1756962648383,-484.20735975,0.00013863,2]
[383500535,1756962648393,-480.0,0.00013863,2]
[383500537,1756962648403,-151.0,0.00013863,2]
[383500539,1756962648413,-152.79517,0.00013863,2]
[383500541,1756962648423,-480.0,0.00013863,2]
[383500543,1756962648432,-480.0,0.00013863,2]
[383500545,1756962648442,-480.0,0.00013863,2]
[383500547,1756962648451,-480.0,0.00013863,2]
[383500550,1756962648465,-480.0,0.00013863,2]
[383500552,1756962648478,-480.0,0.00013863,2]
[383500554,1756962648492,-480.0,0.00013863,2]
[383500557,1756962648503,-480.0,0.00013863,2]
[383500559,1756962648515,-480.0,0.00013863,2]
[383500561,1756962648529,-151.559598,0.00013863,2]
[383500564,1756962648543,-151.0,0.00013863,2]
[383500566,1756962648555,-151.0,0.00013863,2]
[383500568,1756962648568,-151.0,0.00013863,2]
[383500571,1756962648582,-151.0,0.00013863,2]
[383500573,1756962648595,-300.838433,0.00013863,2]
[383500576,1756962648610,-480.0,0.00013863,2]
[383500578,1756962648623,-480.0,0.00013863,2]
[383500580,1756962648635,-480.0,0.00013863,2]
[383500583,1756962648647,-480.0,0.00013863,2]
[383500585,1756962648661,-480.0,0.00013863,2]
[383500588,1756962648673,-151.0,0.00013863,2]
[383500590,1756962648686,-151.0,0.00013863,2]
[383500592,1756962648697,-151.0,0.00013863,2]
[383500594,1756962648709,-186.92635811,0.00013863,2]
[383500596,1756962648721,-418.419321,0.00013863,2]
[383500599,1756962648735,-418.419321,0.00013863,2]
[383500601,1756962648748,-418.419321,0.00013863,2]
[383500603,1756962648760,-418.419321,0.00013863,2]
[383500606,1756962648774,-418.419321,0.00013863,2]
[383500608,1756962648788,-418.419321,0.00013863,2]
[383500611,1756962648802,-418.419321,0.00013863,2]
[383500613,1756962648813,-418.419321,0.00013863,2]
[383500615,1756962648824,-418.419321,0.00013863,2]
[383500617,1756962648835,-418.419321,0.00013863,2]
[383500620,1756962648848,-418.419321,0.00013863,2]
[383500622,1756962648862,-418.419321,0.00013863,2]
[383500624,1756962648875,-418.419321,0.00013863,2]
[383500626,1756962648886,-418.419321,0.00013863,2]
[383500629,1756962648898,-418.419321,0.00013863,2]
[383500631,1756962648911,-418.419321,0.00013863,2]
[383500633,1756962648923,-480.0,0.00013863,2]
[383500636,1756962648934,-418.419321,0.00013863,2]
[383500638,1756962648944,-418.419321,0.00013863,2]
[383500640,1756962648956,-418.419321,0.00013863,2]
[383500642,1756962648967,-418.419324,0.00013863,2]
[383500644,1756962648979,-151.229089,0.00013863,2]
[383500647,1756962648991,-480.0,0.00013863,2]
[383500649,1756962649002,-151.0,0.00013863,2]
[383500651,1756962649013,-151.0,0.00013863,2]
[383500653,1756962649027,-151.0,0.00013863,2]
[383500655,1756962649039,-151.0,0.00013863,2]
[383500657,1756962649051,-151.0,0.00013863,2]
[383500659,1756962649063,-151.0,0.00013863,2]
[383500661,1756962649074,-165.403976,0.00013863,2]
[383500663,1756962649086,-151.0,0.00013863,2]
[383500665,1756962649099,-151.0,0.00013863,2]
[383500668,1756962649110,-931.278783,0.00013863,2]
[383500670,1756962649121,-151.0,0.00013863,2]
[383500672,1756962649133,-152.413955,0.00013863,2]
[383500674,1756962649150,-931.278783,0.00013863,2]
[383500676,1756962649162,-284.253768,0.00013863,2]
[383500679,1756962649174,-931.278783,0.00013863,2]
[383500681,1756962649187,-931.278783,0.00013863,2]
[383500683,1756962649198,-931.278783,0.00013863,2]
[383500685,1756962649211,-931.278783,0.00013863,2]
[383500687,1756962649223,-931.278783,0.00013863,2]
[383500689,1756962649234,-931.278783,0.00013863,2]